lending/lending_fUSD_20250719
["ID","MTS","AMOUNT","RATE_DAILY","PERIOD"]
[373175748,1752891040443,-480.0,0.00019178,2]
[373175750,1752891040453,-480.0,0.00019178,2]
[373175752,1752891040463,-480.0,0.00019178,2]
[373175754,1752891040472,-480.0,0.00019178,2]
[373175756,1752891040481,-480.0,0.00019178,2]
[373175758,1752891040491,-480.0,0.00019178,2]
[373175760,1752891040500,-480.0,0.00019178,2]
[373175762,1752891040509,-480.0,0.00019178,2]
[373175764,1752891040519,-480.0,0.00019178,2]
[373175766,1752891040529,-480.0,0.00019178,2]
[373175768,1752891040538,-480.0,0.00019178,2]
[373175770,1752891040547,-480.0,0.00019178,2]
[373175772,1752891040556,-480.0,0.00019178,2]
[373175774,1752891040565,-293.40957151,0.00019178,2]
[373175776,1752891040575,-163.70676008,0.00019178,2]
[373175778,1752891040585,-480.0,0.00019178,2]
[373175780,1752891040594,-480.0,0.00019178,2]
[373175782,1752891040603,-480.0,0.00019178,2]
[373175784,1752891040612,-480.0,0.00019178,2]
[373175786,1752891040622,-480.0,0.00019178,2]
[373175788,1752891040631,-480.0,0.00019178,2]
[373175790,1752891040640,-480.0,0.00019178,2]
[373175792,1752891040650,-480.0,0.00019178,2]
[373175794,1752891040659,-468.20190727,0.00019178,2]
[373175796,1752891040669,-480.0,0.00019178,2]
[373175798,1752891040679,-480.0,0.00019178,2]
[373175800,1752891040689,-480.0,0.00019178,2]
[373175802,1752891040698,-480.0,0.00019178,2]
[373175804,1752891040707,-480.0,0.00019178,2]
[373175806,1752891040717,-480.0,0.00019178,2]
[373175808,1752891040726,-480.0,0.00019178,2]
[373175810,1752891040735,-480.0,0.00019178,2]
[373175812,1752891040745,-510.94,0.00019178,2]
[373175814,1752891040754,-480.0,0.00019178,2]
[373175816,1752891040763,-480.0,0.00019178,2]
[373175818,1752891040773,-469.31891902,0.00019178,2]
[373175820,1752891040782,-480.0,0.00019178,2]
[373175822,1752891040791,-480.0,0.00019178,2]
[373175824,1752891040800,-251.91168474,0.00019178,2]
[373175826,1752891040809,-480.0,0.00019178,2]
[373175828,1752891040819,-480.0,0.00019178,2]
[373175830,1752891040828,-480.0,0.00019178,2]
[373175832,1752891040838,-562.93472069,0.00019178,2]
[373175834,1752891040847,-434.07402244,0.00019178,2]
[373175836,1752891040857,-480.0,0.00019178,2]
[373175838,1752891040866,-480.0,0.00019178,2]
[373175840,1752891040875,-465.83168781,0.00019178,2]
[373175842,1752891040885,-480.0,0.00019178,2]
[373175844,1752891040894,-480.0,0.00019178,2]
[373175846,1752891040903,-480.0,0.00019178,2]
[373175847,1752891040912,-480.0,0.00019178,2]
[373175849,1752891040922,-480.0,0.00019178,2]
[373175851,1752891040934,-480.0,0.00019178,2]
[373175853,1752891040946,-480.0,0.00019178,2]
[373175855,1752891040955,-447.86930925,0.00019178,2]
[373175857,1752891040965,-480.0,0.00019178,2]
[373175859,1752891040974,-480.0,0.00019178,2]
[373175861,1752891040984,-480.0,0.00019178,2]
[373175863,1752891040993,-480.0,0.00019178,2]
[373175865,1752891041003,-480.0,0.00019178,2]
[373175867,1752891041012,-480.0,0.00019178,2]
[373175869,1752891041023,-480.0,0.00019178,2]
[373175871,1752891041032,-480.0,0.00019178,2]
[373175873,1752891041041,-480.0,0.00019178,2]
[373175875,1752891041051,-480.0,0.00019178,2]
[373175877,1752891041061,-480.0,0.00019178,2]
[373175879,1752891041071,-480.0,0.00019178,2]
[373175881,1752891041080,-480.0,0.00019178,2]
[373175883,1752891041089,-480.0,0.00019178,2]
[373175885,1752891041098,-537.86197444,0.00019178,2]
[373175887,1752891041109,-480.0,0.00019178,2]
[373175889,1752891041118,-480.0,0.00019178,2]
[373175891,1752891041128,-480.0,0.00019178,2]
[373175893,1752891041137,-480.0,0.00019178,2]
[373175895,1752891041146,-480.0,0.00019178,2]
[373175897,1752891041155,-480.0,0.00019178,2]
[373175899,1752891041165,-480.0,0.00019178,2]
[373175901,1752891041174,-675.61,0.00019178,2]
[373175903,1752891041184,-480.0,0.00019178,2]
[373175905,1752891041194,-480.0,0.00019178,2]
[373175907,1752891041203,-480.0,0.00019178,2]
[373175909,1752891041212,-480.0,0.00019178,2]
[373175911,1752891041221,-480.0,0.00019178,2]
[373175913,1752891041230,-390.42247998,0.00019178,2]
[373175915,1752891041239,-480.0,0.00019178,2]
[373175917,1752891041248,-480.0,0.00019178,2]
[373175919,1752891041258,-480.0,0.00019178,2]
[373175921,1752891041267,-480.0,0.00019178,2]
[373175923,1752891041276,-480.0,0.00019178,2]
[373175925,1752891041286,-480.0,0.00019178,2]
[373175927,1752891041295,-639.97,0.00019178,2]
[373175929,1752891041305,-449.19847441,0.00019178,2]
[373175931,1752891041314,-480.0,0.00019178,2]
[373175933,1752891041323,-2005.2,0.00019178,2]
[373175935,1752891041332,-480.0,0.00019178,2]
[373175937,1752891041342,-480.0,0.00019178,2]
[373175938,1752891041350,-480.0,0.00019178,2]
[373175940,1752891041360,-480.0,0.00019178,2]
[373175942,1752891041369,-480.0,0.00019178,2]
[373175944,1752891041378,-480.0,0.00019178,2]
[373175946,1752891041388,-480.0,0.00019178,2]
[373175948,1752891041397,-1465.14,0.00019178,2]
[373175950,1752891041407,-480.0,0.00019178,2]
[373175952,1752891041416,-480.0,0.00019178,2]
[373175954,1752891041425,-487.08,0.00019178,2]
[373175956,1752891041435,-480.0,0.00019178,2]
[373175958,1752891041444,-480.0,0.00019178,2]
[373175960,1752891041453,-480.0,0.00019178,2]
[373175962,1752891041462,-480.0,0.00019178,2]
[373175964,1752891041471,-480.0,0.00019178,2]
[373175966,1752891041480,-665.53,0.00019178,2]
[373175968,1752891041489,-480.0,0.00019178,2]
[373175970,1752891041499,-480.0,0.00019178,2]
[373175972,1752891041508,-626.98,0.00019178,2]
[373175974,1752891041518,-480.0,0.00019178,2]
[373175976,1752891041527,-480.0,0.00019178,2]
[373175978,1752891041537,-1303.68,0.00019178,2]
[373175980,1752891041546,-480.0,0.00019178,2]
[373175982,1752891041555,-480.0,0.00019178,2]
[373175984,1752891041565,-1000.0,0.00019178,2]
[373175986,1752891041575,-480.0,0.00019178,2]
[373175988,1752891041585,-480.0,0.00019178,2]
[373175990,1752891041594,-480.0,0.00019178,2]
[373175992,1752891041604,-480.0,0.00019178,2]
[373175994,1752891041613,-480.0,0.00019178,2]
[373175996,1752891041623,-2836.08,0.00019178,2]
[373175998,1752891041632,-480.0,0.00019178,2]
[373176000,1752891041642,-480.0,0.00019178,2]
[373176002,1752891041652,-480.0,0.00019178,2]
[373176004,1752891041662,-480.0,0.00019178,2]
[373176006,1752891041674,-480.0,0.00019178,2]
[373176008,1752891041685,-663.24,0.00019178,2]
[373176010,1752891041694,-787.77,0.00019178,2]
[373176012,1752891041704,-1001.8,0.00019178,2]
[373176014,1752891041713,-904.48,0.00019178,2]
[373176016,1752891041722,-480.0,0.00019178,2]
[373176018,1752891041733,-821.9,0.00019178,2]
[373176020,1752891041742,-480.0,0.00019178,2]
[373176022,1752891041751,-11915.68,0.00019178,2]
[373176024,1752891041760,-602.94,0.00019178,2]
[373176026,1752891041769,-480.0,0.00019178,2]
[373176028,1752891041778,-554.28,0.00019178,2]
[373176030,1752891041788,-480.0,0.00019178,2]
[373176033,1752891041797,-460.0,0.00019178,2]
[373176035,1752891041807,-305.2,0.00019178,2]
[373176037,1752891041816,-505.3,0.00019178,2]
[373176038,1752891041825,-1568.36,0.00019178,2]
[373176040,1752891041835,-1978.63,0.00019178,2]
[373176042,1752891041844,-690.07,0.00019178,2]
[373176044,1752891041853,-480.0,0.00019178,2]
[373176046,1752891041863,-480.0,0.00019178,2]
[373176048,1752891041872,-480.0,0.00019178,2]
[373176050,1752891041881,-648.39,0.00019178,2]
[373176052,1752891041890,-1693.27,0.00019178,2]
[373176054,1752891041900,-661.63,0.00019178,2]
[373176056,1752891041909,-641.66,0.00019178,2]
[373176058,1752891041918,-480.0,0.00019178,2]
[373176060,1752891041927,-765.15,0.00019178,2]
[373176062,1752891041941,-1207.6,0.00019178,2]
[373176063,1752891041950,-731.84,0.00019178,2]
[373176064,1752891041959,-480.0,0.00019178,2]
[373176065,1752891041968,-480.0,0.00019178,2]
[373176067,1752891041978,-890.72,0.00019178,2]
[373176070,1752891041990,-480.0,0.00019178,2]
[373176071,1752891042002,-480.0,0.00019178,2]
[373176073,1752891042013,-480.0,0.00019178,2]
[373176075,1752891042022,-480.0,0.00019178,2]
[373176077,1752891042031,-480.0,0.00019178,2]
[373176079,1752891042040,-480.0,0.00019178,2]
[373176081,1752891042050,-480.0,0.00019178,2]
[373176083,1752891042059,-4985.31,0.00019178,2]
[373176085,1752891042069,-828.47,0.00019178,2]
[373176087,1752891042078,-480.0,0.00019178,2]
[373176089,1752891042087,-1406.77,0.00019178,2]
[373176091,1752891042097,-889.0,0.00019178,2]
[373176093,1752891042106,-480.0,0.00019178,2]
[373176095,1752891042116,-480.0,0.00019178,2]
[373176097,1752891042125,-480.0,0.00019178,2]
[373176099,1752891042135,-1163.02,0.00019178,2]
[373176101,1752891042144,-480.0,0.00019178,2]
[373176103,1752891042153,-480.0,0.00019178,2]
[373176105,1752891042162,-856.42,0.00019178,2]
[373176107,1752891042172,-480.0,0.00019178,2]
[373176109,1752891042181,-671.1,0.00019178,2]
[373176111,1752891042189,-440.0,0.00019178,2]
[373176113,1752891042199,-670.61,0.00019178,2]
[373176115,1752891042209,-480.0,0.00019178,2]
[373176117,1752891042220,-1133.96,0.00019178,2]
[373176119,1752891042229,-480.0,0.00019178,2]
[373176121,1752891042239,-480.0,0.00019178,2]
[373176123,1752891042249,-480.0,0.00019178,2]
[373176125,1752891042259,-480.0,0.00019178,2]
[373176126,1752891042268,-480.0,0.00019178,2]
[373176129,1752891042279,-480.0,0.00019178,2]
[373176130,1752891042290,-480.0,0.00019178,2]
[373176132,1752891042301,-608.42,0.00019178,2]
[373176135,1752891042311,-480.0,0.00019178,2]
[373176137,1752891042320,-480.0,0.00019178,2]
[373176139,1752891042329,-480.0,0.00019178,2]
[373176141,1752891042339,-2702.36,0.00019178,2]
[373176143,1752891042349,-480.0,0.00019178,2]
[373176145,1752891042358,-480.0,0.00019178,2]
[373176147,1752891042367,-480.0,0.00019178,2]
[373176149,1752891042376,-719.21,0.00019178,2]
[373176151,1752891042386,-480.0,0.00019178,2]
[373176153,1752891042395,-2255.95,0.00019178,2]
[373176154,1752891042404,-480.0,0.00019178,2]
[373176156,1752891042413,-480.0,0.00019178,2]
[373176159,1752891042423,-480.0,0.00019178,2]
[373176161,1752891042433,-480.0,0.00019178,2]
[373176163,1752891042443,-480.0,0.00019178,2]
[373176165,1752891042453,-1171.85,0.00019178,2]
[373176167,1752891042462,-480.0,0.00019178,2]
[373176168,1752891042471,-480.0,0.00019178,2]
[373176170,1752891042480,-489.29,0.00019178,2]
[373176172,1752891042489,-480.0,0.00019178,2]
[373176174,1752891042498,-859.89,0.00019178,2]
[373176176,1752891042507,-1893.96,0.00019178,2]
[373176178,1752891042516,-583.83,0.00019178,2]
[373176180,1752891042525,-1560.09,0.00019178,2]
[373176182,1752891042535,-659.88,0.00019178,2]
[373176184,1752891042544,-480.0,0.00019178,2]
[373176186,1752891042553,-486.68,0.00019178,2]
[373176188,1752891042562,-480.0,0.00019178,2]
[373176190,1752891042571,-463.56550087,0.00019178,2]
[373176192,1752891042580,-480.0,0.00019178,2]
[373176194,1752891042589,-649.1,0.00019178,2]
[373176196,1752891042598,-1481.77,0.00019178,2]
[373176198,1752891042607,-480.0,0.00019178,2]
[373176200,1752891042617,-1000.6,0.00019178,2]
[373176202,1752891042626,-480.0,0.00019178,2]
[373176204,1752891042635,-480.0,0.00019178,2]
[373176206,1752891042645,-500.0,0.00019178,2]
[373176208,1752891042654,-581.33,0.00019178,2]
[373176210,1752891042663,-876.61,0.00019178,2]
[373176212,1752891042673,-480.0,0.00019178,2]
[373176214,1752891042682,-543.52,0.00019178,2]
[373176216,1752891042691,-480.0,0.00019178,2]
[373176218,1752891042700,-580.05,0.00019178,2]
[373176221,1752891042710,-740.88,0.00019178,2]
[373176223,1752891042719,-480.0,0.00019178,2]
[373176224,1752891042728,-370.33073362,0.00019178,2]
[373176227,1752891042738,-480.0,0.00019178,2]
[373176228,1752891042747,-973.18,0.00019178,2]
[373176230,1752891042756,-561.78,0.00019178,2]
[373176232,1752891042766,-480.0,0.00019178,2]
[373176234,1752891042775,-1718.07755491,0.00019178,2]
[373176238,1752891042798,-861.92244509,0.00019178,2]
[373176240,1752891042807,-480.0,0.00019178,2]
[373176242,1752891042817,-158.0775871,0.00019178,2]
[373176245,1752891042840,-590.5,0.00019178,2]
[373176248,1752891042851,-858.05649409,0.00019178,2]
[373176255,1752891042882,-86.73726725,0.00019178,2]
[373176331,1752891043599,-540.39359496,0.00019178,2]
[373176338,1752891043660,-1594.08755031,0.00019178,2]
[373176567,1752891046031,-865.33750629,0.00019178,2]
[373176569,1752891046041,-1409.34,0.00019178,2]
[373176571,1752891046050,-480.0,0.00019178,2]
[373176573,1752891046060,-771.8,0.00019178,2]
[373176575,1752891046070,-480.0,0.00019178,2]
[373176577,1752891046079,-480.0,0.00019178,2]
[373176579,1752891046088,-480.0,0.00019178,2]
[373176582,1752891046098,-480.0,0.00019178,2]
[373176583,1752891046107,-480.0,0.00019178,2]
[373176585,1752891046117,-561.28,0.00019178,2]
[373176588,1752891046127,-670.41,0.00019178,2]
[373176590,1752891046136,-480.0,0.00019178,2]
[373176591,1752891046146,-480.0,0.00019178,2]
[373176593,1752891046157,-480.0,0.00019178,2]
[373176596,1752891046166,-1170.79,0.00019178,2]
[373176598,1752891046175,-517.41,0.00019178,2]
[373176600,1752891046188,-480.0,0.00019178,2]
[373176602,1752891046197,-945.53,0.00019178,2]
[373176604,1752891046206,-176.10249371,0.00019178,2]
[373176606,1752891046218,-389.17750629,0.00019178,2]
[373176608,1752891046227,-250.50781914,0.00019178,2]
[373176611,1752891046250,-1905.76218086,0.00019178,2]
[373176613,1752891046259,-653.92,0.00019178,2]
[373176615,1752891046269,-480.0,0.00019178,2]
[373176618,1752891046278,-2198.56,0.00019178,2]
[373176619,1752891046288,-372.89266733,0.00019178,2]
[373176621,1752891046298,-480.0,0.00019178,2]
[373176623,1752891046307,-480.0,0.00019178,2]
[373176626,1752891046317,-480.0,0.00019178,2]
[373176628,1752891046327,-1374.62,0.00019178,2]
[373176630,1752891046337,-1107.48,0.00019178,2]
[373176632,1752891046347,-480.0,0.00019178,2]
[373176634,1752891046357,-1446.35,0.00019178,2]
[373176636,1752891046367,-481.03,0.00019178,2]
[373176638,1752891046376,-480.0,0.00019178,2]
[373176640,1752891046386,-269.70015384,0.00019178,2]
[373176642,1752891046395,-152.34,0.00019178,2]
[373176644,1752891046405,-168.54,0.00019178,2]
[373176646,1752891046414,-16135.58613054,0.00019178,2]
[373176648,1752891046424,-480.0,0.00019186,2]
[373176650,1752891046437,-480.0,0.00019186,2]
[373176652,1752891046446,-480.0,0.00019186,2]
[373176654,1752891046456,-892.86,0.00019186,2]
[373176656,1752891046465,-972.73,0.00019186,2]
[373176658,1752891046474,-1275.84,0.00019186,2]
[373176660,1752891046484,-1035.17,0.00019186,2]
[373176662,1752891046493,-480.0,0.00019186,2]
[373176664,1752891046503,-582.16,0.00019186,2]
[373176666,1752891046512,-480.0,0.00019186,2]
[373176668,1752891046522,-480.0,0.00019186,2]
[373176670,1752891046531,-1781.25,0.00019186,2]
[373176672,1752891046541,-867.85,0.00019186,2]
[373176673,1752891046551,-480.0,0.00019186,2]
[373176676,1752891046560,-480.0,0.00019186,2]
[373176677,1752891046570,-1984.78,0.00019186,2]
[373176680,1752891046579,-480.0,0.00019186,2]
[373176682,1752891046589,-1442.12,0.00019186,2]
[373176684,1752891046599,-522.92,0.00019186,2]
[373176686,1752891046609,-571.15,0.00019186,2]
[373176688,1752891046618,-480.0,0.00019186,2]
[373176690,1752891046627,-635.6,0.00019186,2]
[373176692,1752891046637,-24789.77760409,0.00019187,2]
[373176694,1752891046650,-21957.19453287,0.00019187,2]
[373176696,1752891046661,-60774.79186304,0.00019187,2]
[373176698,1752891046671,-2500.0,0.00019187,2]
[373176700,1752891046683,-5000.0,0.00019187,2]
[373176702,1752891046693,-992.36130399,0.00019192,2]
[373176704,1752891046702,-992.36130399,0.0001925,2]
[373176706,1752891046711,-500.0,0.00019286,2]
[373176708,1752891046720,-480.0,0.00019287,2]
[373176710,1752891046731,-480.0,0.00019287,2]
[373176712,1752891046741,-500.23,0.00019287,2]
[373176714,1752891046752,-480.0,0.00019287,2]
[373176716,1752891046761,-480.0,0.00019287,2]
[373176718,1752891046770,-480.0,0.00019287,2]
[373176720,1752891046780,-480.0,0.00019287,2]
[373176722,1752891046789,-151.46261034,0.00019287,2]
[373176724,1752891046799,-480.0,0.00019287,2]
[373176726,1752891046810,-480.0,0.00019287,2]
[373176728,1752891046820,-480.0,0.00019287,2]
[373176730,1752891046830,-182.98462038,0.00019287,2]
[373176732,1752891046840,-510.18842557,0.00019287,2]
[373176734,1752891046849,-480.0,0.00019287,2]
[373176736,1752891046860,-480.0,0.00019287,2]
[373176738,1752891046870,-480.0,0.00019287,2]
[373176740,1752891046879,-480.0,0.00019287,2]
[373176742,1752891046888,-499.10753075,0.00019287,2]
[373176744,1752891046898,-480.0,0.00019287,2]
[373176746,1752891046908,-480.0,0.00019287,2]
[373176747,1752891046917,-480.0,0.00019287,2]
[373176749,1752891046926,-648.65,0.00019287,2]
[373176751,1752891046938,-480.0,0.00019287,2]
[373176753,1752891046951,-480.0,0.00019287,2]
[373176755,1752891046961,-480.0,0.00019287,2]
[373176757,1752891046970,-480.0,0.00019287,2]
[373176759,1752891046979,-480.0,0.00019287,2]
[373176761,1752891046991,-480.0,0.00019287,2]
[373176762,1752891047000,-480.0,0.00019287,2]
[373176764,1752891047010,-477.44184457,0.00019287,2]
[373176766,1752891047020,-480.0,0.00019287,2]
[373176768,1752891047030,-480.0,0.00019287,2]
[373176770,1752891047039,-480.0,0.00019287,2]
[373176772,1752891047050,-480.0,0.00019287,2]
[373176774,1752891047060,-480.0,0.00019287,2]
[373176776,1752891047069,-480.0,0.00019287,2]
[373176778,1752891047079,-480.0,0.00019287,2]
[373176810,1752891047371,-573.86502948,0.00019287,2]
[373176812,1752891047382,-480.0,0.00019287,2]
[373176814,1752891047391,-480.0,0.00019287,2]
[373176816,1752891047401,-480.0,0.00019287,2]
[373176818,1752891047411,-480.0,0.00019287,2]
[373176820,1752891047420,-480.0,0.00019287,2]
[373176822,1752891047430,-480.0,0.00019287,2]
[373176824,1752891047441,-480.0,0.00019287,2]
[373176826,1752891047450,-480.0,0.00019287,2]
[373176828,1752891047460,-480.0,0.00019287,2]
[373176830,1752891047469,-480.0,0.00019287,2]
[373176832,1752891047479,-480.0,0.00019287,2]
[373176834,1752891047489,-480.0,0.00019287,2]
[373176836,1752891047498,-480.0,0.00019287,2]
[373176838,1752891047507,-480.0,0.00019287,2]
[373176840,1752891047517,-480.0,0.00019287,2]
[373176842,1752891047526,-480.0,0.00019287,2]
[373176843,1752891047536,-480.0,0.00019287,2]
[373176845,1752891047545,-480.0,0.00019287,2]
[373176848,1752891047555,-480.0,0.00019287,2]
[373176849,1752891047565,-480.0,0.00019287,2]
[373176851,1752891047574,-480.0,0.00019287,2]
[373176853,1752891047584,-510.94,0.00019287,2]
[373176856,1752891047593,-480.0,0.00019287,2]
[373176857,1752891047604,-480.0,0.00019287,2]
[373176859,1752891047613,-447.82617116,0.00019287,2]
[373176861,1752891047623,-480.0,0.00019287,2]
[373176863,1752891047632,-480.0,0.00019287,2]
[373176865,1752891047641,-480.0,0.00019287,2]
[373176867,1752891047651,-480.0,0.00019287,2]
[373176869,1752891047660,-480.0,0.00019287,2]
[373176871,1752891047670,-480.0,0.00019287,2]
[373176873,1752891047679,-480.0,0.00019287,2]
[373176875,1752891047690,-480.0,0.00019287,2]
[373176877,1752891047699,-618.41362027,0.00019287,2]
[373176879,1752891047708,-480.0,0.00019287,2]
[373176881,1752891047718,-480.0,0.00019287,2]
[373176883,1752891047728,-480.0,0.00019287,2]
[373176885,1752891047738,-480.0,0.00019287,2]
[373176887,1752891047747,-480.0,0.00019287,2]
[373176889,1752891047759,-480.0,0.00019287,2]
[373176891,1752891047774,-480.0,0.00019287,2]
[373176893,1752891047784,-480.0,0.00019287,2]
[373176895,1752891047793,-480.0,0.00019287,2]
[373176897,1752891047802,-480.0,0.00019287,2]
[373176899,1752891047824,-480.0,0.00019287,2]
[373176901,1752891047833,-480.0,0.00019287,2]
[373176903,1752891047843,-493.65338182,0.00019287,2]
[373176905,1752891047853,-480.0,0.00019287,2]
[373176908,1752891047864,-480.0,0.00019287,2]
[373176909,1752891047874,-480.0,0.00019287,2]
[373176911,1752891047883,-480.0,0.00019287,2]
[373176913,1752891047893,-480.0,0.00019287,2]
[373176915,1752891047902,-480.0,0.00019287,2]
[373176917,1752891047911,-480.0,0.00019287,2]
[373176919,1752891047921,-480.0,0.00019287,2]
[373176921,1752891047932,-480.0,0.00019287,2]
[373176923,1752891047943,-480.0,0.00019287,2]
[373176925,1752891047952,-480.0,0.00019287,2]
[373176927,1752891047962,-480.0,0.00019287,2]
[373176929,1752891047971,-675.61,0.00019287,2]
[373176931,1752891047980,-480.0,0.00019287,2]
[373176933,1752891047990,-480.0,0.00019287,2]
[373176935,1752891047999,-482.56701364,0.00019287,2]
[373176937,1752891048009,-480.0,0.00019287,2]
[373176939,1752891048020,-480.0,0.00019287,2]
[373176941,1752891048029,-480.0,0.00019287,2]
[373176943,1752891048039,-480.0,0.00019287,2]
[373176945,1752891048048,-480.0,0.00019287,2]
[373176947,1752891048058,-480.0,0.00019287,2]
[373176949,1752891048068,-480.0,0.00019287,2]
[373176951,1752891048077,-639.97,0.00019287,2]
[373176953,1752891048087,-480.0,0.00019287,2]
[373176955,1752891048097,-2005.2,0.00019287,2]
[373176957,1752891048106,-480.0,0.00019287,2]
[373176959,1752891048116,-425.09160377,0.00019287,2]
[373176961,1752891048125,-480.0,0.00019287,2]
[373176963,1752891048134,-480.0,0.00019287,2]
[373176965,1752891048144,-222.12677824,0.00019287,2]
[373176967,1752891048154,-480.0,0.00019287,2]
[373176969,1752891048163,-480.0,0.00019287,2]
[373176971,1752891048172,-1465.14,0.00019287,2]
[373176973,1752891048182,-480.0,0.00019287,2]
[373176975,1752891048193,-480.0,0.00019287,2]
[373176977,1752891048203,-487.08,0.00019287,2]
[373176979,1752891048213,-191.84924466,0.00019287,2]
[373176980,1752891048223,-480.0,0.00019287,2]
[373176982,1752891048232,-480.0,0.00019287,2]
[373176985,1752891048243,-480.0,0.00019287,2]
[373176986,1752891048253,-562.17821094,0.00019287,2]
[373176989,1752891048263,-665.53,0.00019287,2]
[373176990,1752891048273,-480.0,0.00019287,2]
[373176993,1752891048283,-480.0,0.00019287,2]
[373176995,1752891048293,-626.98,0.00019287,2]
[373176997,1752891048303,-480.0,0.00019287,2]
[373176999,1752891048313,-480.0,0.00019287,2]
[373177001,1752891048323,-1303.68,0.00019287,2]
[373177003,1752891048333,-480.0,0.00019287,2]
[373177005,1752891048343,-480.0,0.00019287,2]
[373177007,1752891048353,-1000.0,0.00019287,2]
[373177008,1752891048363,-480.0,0.00019287,2]
[373177011,1752891048374,-480.0,0.00019287,2]
[373177012,1752891048384,-480.0,0.00019287,2]
[373177014,1752891048397,-480.0,0.00019287,2]
[373177017,1752891048407,-480.0,0.00019287,2]
[373177019,1752891048417,-2836.08,0.00019287,2]
[373177021,1752891048427,-480.0,0.00019287,2]
[373177023,1752891048439,-480.0,0.00019287,2]
[373177024,1752891048448,-480.0,0.00019287,2]
[373177026,1752891048458,-480.0,0.00019287,2]
[373177028,1752891048468,-480.0,0.00019287,2]
[373177031,1752891048478,-1001.8,0.00019287,2]
[373177032,1752891048488,-904.48,0.00019287,2]
[373177034,1752891048498,-480.0,0.00019287,2]
[373177037,1752891048508,-821.9,0.00019287,2]
[373177039,1752891048517,-480.0,0.00019287,2]
[373177040,1752891048527,-11915.68,0.00019287,2]
[373177043,1752891048537,-480.0,0.00019287,2]
[373177045,1752891048546,-554.28,0.00019287,2]
[373177046,1752891048556,-480.0,0.00019287,2]
[373177048,1752891048565,-505.3,0.00019287,2]
[373177050,1752891048574,-1568.36,0.00019287,2]
[373177052,1752891048584,-1978.63,0.00019287,2]
[373177054,1752891048593,-690.07,0.00019287,2]
[373177056,1752891048603,-480.0,0.00019287,2]
[373177059,1752891048614,-480.0,0.00019287,2]
[373177061,1752891048624,-490.76728185,0.00019287,2]
[373177063,1752891048633,-648.39,0.00019287,2]
[373177065,1752891048643,-209.00708595,0.00019287,2]
[373177101,1752891048989,-1484.26291405,0.00019287,2]
[373177103,1752891048999,-661.63,0.00019287,2]
[373177105,1752891049009,-641.66,0.00019287,2]
[373177107,1752891049020,-480.0,0.00019287,2]
[373177109,1752891049030,-765.15,0.00019287,2]
[373177111,1752891049040,-1207.6,0.00019287,2]
[373177113,1752891049049,-731.84,0.00019287,2]
[373177115,1752891049059,-480.0,0.00019287,2]
[373177117,1752891049068,-480.0,0.00019287,2]
[373177119,1752891049078,-890.72,0.00019287,2]